fUSD/lending_fUSD_20260107
["ID","MTS","AMOUNT","RATE_DAILY","PERIOD"]
[400629030,1767750660116,-1343.26,0.000398,14]
[400629031,1767750660126,-19641.59618892,0.000398,2]
[400629032,1767750660136,-690.18605,0.00039888,30]
[400629033,1767750660149,-158.95761741,0.00039897,14]
[400629034,1767750660159,-65484.23252267,0.000399,30]
[400629035,1767750660169,-320596.51408153,0.000399,120]
[400629036,1767750660179,-1368.95,0.00039964,56]
[400629037,1767750660191,-3852.14934411,0.00039999,2]
[400629038,1767750660201,-507.23,0.00039999,30]
[400629039,1767750660212,-605.24532041,0.0004,5]
[400629040,1767750660223,-250.0,0.0004,45]
[400629041,1767750660235,-250.0,0.0004,45]
[400629042,1767750660244,-160.0,0.0004,33]
[400629043,1767750660255,-160.0,0.0004,33]
[400629044,1767750660265,-160.0,0.0004,33]
[400629045,1767750660275,-160.0,0.0004,33]
[400629046,1767750660285,-160.0,0.0004,33]
[400629047,1767750660297,-160.0,0.0004,33]
[400629048,1767750660307,-160.0,0.0004,33]
[400629049,1767750660317,-250.0,0.0004,45]
[400629050,1767750660328,-250.0,0.0004,45]
[400629051,1767750660339,-152.0,0.0004,120]
[400629052,1767750660348,-1590.49149987,0.0004,2]
[400629053,1767750660358,-250.0,0.0004,45]
[400629054,1767750660367,-250.0,0.0004,45]
[400629055,1767750660377,-717.80445789,0.0004,60]
[400629056,1767750660388,-499.999999,0.0004,120]
[400629057,1767750660398,-300.32686327,0.0004,120]
[400629058,1767750660408,-14286.60642706,0.0004,4]
[400629059,1767750660419,-1479.41882164,0.0004,30]
[400629060,1767750660429,-1019.39104929,0.0004,20]
[400629061,1767750660439,-800.57995898,0.0004,120]
[400629062,1767750660448,-1604.9734059,0.0004,30]
[400629063,1767750660457,-497.31948366,0.0004,30]
[400629064,1767750660466,-390.25,0.0004,2]
[400629065,1767750660476,-919.53,0.0004,12]
[400629066,1767750660486,-6881.57553932,0.0004,30]
[400629067,1767750660495,-1194.34640566,0.0004,30]
[400629068,1767750660505,-209.72935748,0.0004,30]
[400629069,1767750660514,-541.0,0.0004,120]
[400629070,1767750660523,-1043.44170185,0.0004,14]
[400629071,1767750660531,-1030.62487221,0.0004,30]
[400629072,1767750660541,-911.43877694,0.0004,30]
[400629073,1767750660550,-2500.0,0.0004,7]
[400629074,1767750660559,-201.16863243,0.0004,120]
[400629075,1767750660568,-332.84,0.0004,120]
[400629076,1767750660577,-594.37,0.0004,120]
[400629077,1767750660587,-500.0,0.0004,120]
[400629078,1767750660598,-152.0,0.0004,120]
[400629079,1767750660609,-154.43394866,0.0004,10]
[400629080,1767750660619,-1019.0,0.0004,30]
[400629081,1767750660631,-154.4540107,0.00040011,2]
[400629082,1767750660640,-30536.43058289,0.00040086,5]
[400629083,1767750660649,-690.18605,0.00040088,30]
[400629084,1767750660658,-1531.04,0.00040111,120]
[400629085,1767750660667,-152.0,0.00040139,8]
[400629086,1767750660677,-152.0,0.00040183,15]
[400629087,1767750660686,-505.0,0.00040247,14]
[400629088,1767750660696,-690.18605,0.00040288,30]
[400629089,1767750660705,-2000.0,0.000403,2]
[400629090,1767750660715,-1000.0,0.00040392,7]
[400629091,1767750660724,-1000.0,0.00040485,7]
[400629092,1767750660735,-690.18605,0.00040488,30]
[400629093,1767750660744,-160.0,0.000405,35]
[400629094,1767750660754,-160.0,0.000405,35]
[400629095,1767750660763,-250.0,0.000405,45]
[400629096,1767750660773,-160.0,0.000405,35]
[400629097,1767750660782,-250.0,0.000405,45]
[400629098,1767750660791,-1040.62,0.000405,30]
[400629099,1767750660801,-250.0,0.000405,45]
[400629100,1767750660810,-250.0,0.000405,45]
[400629101,1767750660819,-250.0,0.000405,45]
[400629102,1767750660828,-3462.98,0.000405,30]
[400629103,1767750660838,-7004.8462969,0.000405,3]
[400629104,1767750660847,-498.2117935,0.000405,30]
[400629105,1767750660856,-160.0,0.000405,35]
[400629106,1767750660868,-160.0,0.000405,35]
[400629107,1767750660877,-1000.0,0.00040528,7]
[400629108,1767750660886,-152.0,0.000406,120]
[400629109,1767750660895,-8732.20070403,0.0004062,7]
[400629110,1767750660905,-295.94924026,0.00040648,120]
[400629111,1767750660914,-690.18605,0.00040688,30]
[400629112,1767750660922,-152.0,0.000407,120]
[400629113,1767750660931,-6228.0,0.000407,117]
[400629114,1767750660941,-1000.0,0.0004072,7]
[400629115,1767750660950,-152.98,0.00040741,120]
[400629116,1767750660959,-152.97,0.00040741,120]
[400629117,1767750660968,-157.35,0.00040804,120]
[400629118,1767750660978,-500.0,0.00040821,120]
[400629119,1767750660988,-500.0,0.00040821,120]
[400629120,1767750660998,-500.0,0.00040821,120]
[400629121,1767750661007,-500.0,0.00040821,120]
[400629122,1767750661017,-500.0,0.00040821,120]
[400629123,1767750661026,-500.0,0.00040821,120]
[400629124,1767750661036,-500.0,0.00040821,120]
[400629125,1767750661047,-500.0,0.00040821,120]
[400629126,1767750661057,-500.0,0.00040821,120]
[400629127,1767750661067,-500.0,0.00040821,120]
[400629128,1767750661076,-500.0,0.00040821,120]
[400629129,1767750661085,-500.0,0.00040821,120]
[400629130,1767750661095,-213.27140878,0.00040821,120]
[400629131,1767750661106,-152.97,0.00040841,120]
[400629132,1767750661115,-614.0,0.00040861,2]
[400629133,1767750661125,-1405.0,0.00040861,2]
[400629134,1767750661137,-1330.0,0.00040861,2]
[400629135,1767750661152,-3467.0,0.00040861,2]
[400629136,1767750661161,-1266.0,0.00040861,2]
[400629137,1767750661171,-505.0,0.00040861,2]
[400629138,1767750661182,-1201.0,0.00040861,2]
[400629139,1767750661193,-914.0,0.00040861,2]
[400629140,1767750661203,-4818.0,0.00040861,2]
[400629141,1767750661213,-6551.0,0.00040861,2]
[400629142,1767750661224,-2436.0,0.00040861,2]
[400629143,1767750661234,-150.0,0.00040861,2]
[400629144,1767750661243,-690.18605,0.00040888,30]
[400629145,1767750661252,-1343.26,0.000409,14]
[400629146,1767750661262,-1000.0,0.000409,7]
[400629147,1767750661271,-157.35,0.00040904,120]
[400629148,1767750661281,-152.97,0.00040941,120]
[400629149,1767750661290,-7577.68298788,0.00040998,2]
[400629150,1767750661299,-8083.14100592,0.00041,30]
[400629151,1767750661309,-250.0,0.00041,45]
[400629152,1767750661318,-250.0,0.00041,45]
[400629153,1767750661328,-250.0,0.00041,45]
[400629154,1767750661337,-1588.0,0.00041,30]
[400629155,1767750661347,-250.0,0.00041,45]
[400629156,1767750661356,-191.17781272,0.00041,45]
[400629157,1767750661366,-164.93018471,0.00041,120]
[400629158,1767750661375,-214.83253642,0.00041,30]
[400629159,1767750661385,-1851.32859183,0.00041,120]
[400629160,1767750661394,-1000.0,0.00041,30]
[400629161,1767750661404,-1187.89724212,0.00041,35]
[400629162,1767750661413,-1880.0439873,0.00041,120]
[400629163,1767750661423,-624.49461619,0.00041,30]
[400629164,1767750661432,-1189.45,0.00041,14]
[400629165,1767750661442,-1019.0,0.00041,30]
[400629166,1767750661452,-157.35,0.00041004,120]
[400629167,1767750661462,-1000.0,0.0004101,7]
[400629168,1767750661472,-152.97,0.00041041,120]
[400629169,1767750661482,-152.0,0.00041052,16]
[400629170,1767750661491,-118206.94560466,0.00041059,2]
[400629171,1767750661501,-728.65172272,0.00041059,120]
[400629172,1767750661511,-1000.0,0.00041062,7]
[400629173,1767750661522,-300.0,0.00041068,22]
[400629174,1767750661532,-690.18605,0.00041088,30]
[400629175,1767750661542,-233.51889341,0.00041091,2]
[400629176,1767750661551,-1000.0,0.00041095,2]
[400629177,1767750661560,-1000.0,0.00041095,2]
[400629178,1767750661569,-1000.0,0.00041095,2]
[400629179,1767750661578,-1000.0,0.00041095,2]
[400629180,1767750661588,-1076.95721268,0.00041095,2]
[400629181,1767750661597,-500.0,0.00041095,2]
[400629182,1767750661606,-500.0,0.00041095,2]
[400629183,1767750661615,-500.0,0.00041095,2]
[400629184,1767750661625,-500.0,0.00041095,2]
[400629185,1767750661633,-500.0,0.00041095,2]
[400629186,1767750661643,-500.0,0.00041095,2]
[400629187,1767750661652,-500.0,0.00041095,2]
[400629188,1767750661661,-500.0,0.00041095,2]
[400629189,1767750661670,-500.0,0.00041095,2]
[400629190,1767750661679,-500.0,0.00041095,2]
[400629191,1767750661688,-500.0,0.00041095,2]
[400629192,1767750661697,-500.0,0.00041095,2]
[400629193,1767750661706,-500.0,0.00041095,2]
[400629194,1767750661715,-500.0,0.00041095,2]
[400629195,1767750661724,-500.0,0.00041095,2]
[400629196,1767750661733,-500.0,0.00041095,2]
[400629197,1767750661743,-500.0,0.00041095,2]
[400629198,1767750661752,-500.0,0.00041095,2]
[400629199,1767750661761,-500.0,0.00041095,2]
[400629200,1767750661770,-500.0,0.00041095,2]
[400629201,1767750661780,-500.0,0.00041095,2]
[400629202,1767750661788,-500.0,0.00041095,2]
[400629203,1767750661798,-500.0,0.00041095,2]
[400629204,1767750661808,-500.0,0.00041095,2]
[400629205,1767750661817,-500.0,0.00041095,2]
[400629206,1767750661826,-500.0,0.00041095,2]
[400629207,1767750661835,-322.07363945,0.00041095,2]
[400629208,1767750661844,-500.0,0.00041095,2]
[400629209,1767750661853,-500.0,0.00041095,2]
[400629210,1767750661862,-500.0,0.00041095,2]
[400629211,1767750661871,-500.0,0.00041095,2]
[400629212,1767750661880,-500.0,0.00041095,2]
[400629213,1767750661889,-500.0,0.00041095,2]
[400629214,1767750661898,-500.0,0.00041095,2]
[400629215,1767750661908,-500.0,0.00041095,2]
[400629216,1767750661918,-500.0,0.00041095,2]
[400629217,1767750661927,-500.0,0.00041095,2]
[400629218,1767750661936,-526.89052971,0.00041095,2]
[400629219,1767750661945,-563.14,0.00041095,2]
[400629220,1767750661954,-563.14,0.00041095,2]
[400629221,1767750661963,-563.14,0.00041095,2]
[400629222,1767750661972,-563.14,0.00041095,2]
[400629223,1767750661981,-563.14,0.00041095,2]
[400629224,1767750661990,-563.14,0.00041095,2]
[400629225,1767750661999,-563.14,0.00041095,2]
[400629226,1767750662008,-563.14,0.00041095,2]
[400629227,1767750662017,-563.14,0.00041095,2]
[400629228,1767750662027,-563.14,0.00041095,2]
[400629229,1767750662036,-563.14,0.00041095,2]
[400629230,1767750662045,-563.14,0.00041095,2]
[400629231,1767750662053,-563.14,0.00041095,2]
[400629232,1767750662062,-563.14,0.00041095,2]
[400629233,1767750662071,-563.14,0.00041095,2]
[400629234,1767750662080,-563.14,0.00041095,2]
[400629235,1767750662089,-563.14,0.00041095,2]
[400629236,1767750662098,-563.14,0.00041095,2]
[400629237,1767750662107,-563.14,0.00041095,2]
[400629238,1767750662117,-563.14,0.00041095,2]
[400629239,1767750662125,-563.14,0.00041095,2]
[400629240,1767750662135,-563.14,0.00041095,2]
[400629241,1767750662147,-563.14,0.00041095,2]
[400629242,1767750662156,-563.3205719,0.00041095,2]
[400629243,1767750662166,-500.0,0.00041095,2]
[400629244,1767750662175,-500.0,0.00041095,2]
[400629245,1767750662186,-500.0,0.00041095,2]
[400629246,1767750662195,-500.0,0.00041095,2]
[400629247,1767750662204,-500.0,0.00041095,2]
[400629248,1767750662215,-500.0,0.00041095,2]
[400629249,1767750662225,-500.0,0.00041095,2]
[400629250,1767750662235,-500.0,0.00041095,2]
[400629251,1767750662244,-500.0,0.00041095,2]
[400629252,1767750662253,-500.0,0.00041095,2]
[400629253,1767750662262,-500.0,0.00041095,2]
[400629254,1767750662271,-500.0,0.00041095,2]
[400629255,1767750662280,-500.0,0.00041095,2]
[400629256,1767750662289,-500.0,0.00041095,2]
[400629257,1767750662298,-500.0,0.00041095,2]
[400629258,1767750662307,-500.0,0.00041095,2]
[400629259,1767750662316,-500.0,0.00041095,2]
[400629260,1767750662325,-500.0,0.00041095,2]
[400629261,1767750662334,-500.0,0.00041095,2]
[400629262,1767750662343,-500.0,0.00041095,2]
[400629263,1767750662351,-500.0,0.00041095,2]
[400629264,1767750662361,-192.03537295,0.00041095,2]
[400629265,1767750662370,-151.0,0.00041095,120]
[400629266,1767750662379,-151.0,0.00041095,120]
[400629267,1767750662388,-151.0,0.00041095,120]
[400629268,1767750662398,-151.0,0.00041095,120]
[400629269,1767750662407,-513.8834858,0.00041095,120]
[400629270,1767750662416,-6000.0,0.00041095,5]
[400629271,1767750662425,-4000.0,0.00041095,5]
[400629272,1767750662435,-635.32604069,0.00041095,120]
[400629273,1767750662444,-191.44978487,0.00041095,120]
[400629274,1767750662453,-500.0,0.00041095,10]
[400629275,1767750662461,-500.0,0.00041095,10]
[400629276,1767750662470,-500.0,0.00041095,10]
[400629277,1767750662479,-500.0,0.00041095,10]
[400629278,1767750662489,-500.0,0.00041095,10]
[400629279,1767750662499,-500.0,0.00041095,10]
[400629280,1767750662508,-500.0,0.00041095,10]
[400629281,1767750662517,-500.0,0.00041095,10]
[400629282,1767750662526,-500.0,0.00041095,10]
[400629283,1767750662535,-500.0,0.00041095,10]
[400629284,1767750662543,-500.0,0.00041095,10]
[400629285,1767750662552,-500.0,0.00041095,10]
[400629286,1767750662562,-500.0,0.00041095,10]
[400629287,1767750662571,-500.0,0.00041095,10]
[400629288,1767750662581,-500.0,0.00041095,10]
[400629289,1767750662590,-502.68593156,0.00041095,10]
[400629290,1767750662599,-509.24300934,0.00041095,120]
[400629291,1767750662608,-500.0,0.00041095,2]
[400629292,1767750662617,-500.0,0.00041095,2]
[400629293,1767750662626,-500.0,0.00041095,2]
[400629294,1767750662634,-500.0,0.00041095,2]
[400629295,1767750662643,-500.0,0.00041095,2]
[400629296,1767750662652,-500.0,0.00041095,2]
[400629297,1767750662661,-500.0,0.00041095,2]
[400629298,1767750662670,-500.0,0.00041095,2]
[400629299,1767750662679,-500.0,0.00041095,2]
[400629300,1767750662687,-500.0,0.00041095,2]
[400629301,1767750662696,-500.0,0.00041095,2]
[400629302,1767750662706,-500.0,0.00041095,2]
[400629303,1767750662715,-500.0,0.00041095,2]
[400629304,1767750662724,-500.0,0.00041095,2]
[400629305,1767750662733,-500.0,0.00041095,2]
[400629306,1767750662742,-500.0,0.00041095,2]
[400629307,1767750662751,-638.27837824,0.00041095,2]
[400629308,1767750662761,-300.0,0.00041095,2]
[400629309,1767750662771,-300.0,0.00041095,2]
[400629310,1767750662780,-300.0,0.00041095,2]
[400629311,1767750662789,-300.0,0.00041095,2]
[400629312,1767750662799,-300.0,0.00041095,2]
[400629313,1767750662808,-300.0,0.00041095,2]
[400629314,1767750662817,-300.0,0.00041095,2]
[400629315,1767750662827,-300.0,0.00041095,2]
[400629316,1767750662836,-300.0,0.00041095,2]
[400629317,1767750662845,-300.0,0.00041095,2]
[400629318,1767750662855,-300.0,0.00041095,2]
[400629319,1767750662864,-300.0,0.00041095,2]
[400629320,1767750662873,-300.0,0.00041095,2]
[400629321,1767750662883,-300.0,0.00041095,2]
[400629322,1767750662892,-300.0,0.00041095,2]
[400629323,1767750662901,-300.0,0.00041095,2]
[400629324,1767750662911,-300.0,0.00041095,2]
[400629325,1767750662920,-300.0,0.00041095,2]
[400629326,1767750662930,-425.14969517,0.00041095,2]
[400629327,1767750662939,-500.0,0.00041095,2]
[400629328,1767750662949,-500.0,0.00041095,2]
[400629329,1767750662958,-500.0,0.00041095,2]
[400629330,1767750662967,-500.0,0.00041095,2]
[400629331,1767750662976,-500.0,0.00041095,2]
[400629332,1767750662986,-225.35929033,0.00041095,2]
[400629333,1767750662995,-300.0,0.00041095,2]
[400629334,1767750663004,-300.0,0.00041095,2]
[400629335,1767750663013,-300.0,0.00041095,2]
[400629336,1767750663023,-300.0,0.00041095,2]
[400629337,1767750663032,-300.0,0.00041095,2]
[400629338,1767750663040,-300.0,0.00041095,2]
[400629339,1767750663049,-300.0,0.00041095,2]
[400629340,1767750663058,-300.0,0.00041095,2]
[400629341,1767750663067,-300.0,0.00041095,2]
[400629342,1767750663076,-300.0,0.00041095,2]
[400629343,1767750663084,-300.0,0.00041095,2]
[400629344,1767750663093,-300.0,0.00041095,2]
[400629345,1767750663102,-300.0,0.00041095,2]
[400629346,1767750663111,-300.0,0.00041095,2]
[400629347,1767750663120,-300.0,0.00041095,2]
[400629348,1767750663129,-300.0,0.00041095,2]
[400629349,1767750663138,-300.0,0.00041095,2]
[400629350,1767750663149,-300.0,0.00041095,2]
[400629351,1767750663160,-300.0,0.00041095,2]
[400629352,1767750663169,-300.0,0.00041095,2]
[400629353,1767750663178,-300.0,0.00041095,2]
[400629354,1767750663187,-300.0,0.00041095,2]
[400629355,1767750663197,-300.0,0.00041095,2]
[400629356,1767750663207,-254.78466216,0.00041095,2]
[400629357,1767750663216,-1031.12,0.00041095,120]
[400629358,1767750663226,-300.0,0.00041095,2]
[400629359,1767750663236,-300.0,0.00041095,2]
[400629360,1767750663245,-300.0,0.00041095,2]
[400629361,1767750663255,-300.0,0.00041095,2]
[400629362,1767750663264,-300.0,0.00041095,2]
[400629363,1767750663273,-300.0,0.00041095,2]
[400629364,1767750663282,-300.0,0.00041095,2]
[400629365,1767750663291,-300.0,0.00041095,2]
[400629366,1767750663301,-300.0,0.00041095,2]
[400629367,1767750663310,-300.0,0.00041095,2]
[400629368,1767750663319,-300.78903037,0.00041095,2]
[400629369,1767750663330,-500.0,0.00041095,2]
[400629370,1767750663340,-500.0,0.00041095,2]
[400629371,1767750663350,-362.25039121,0.00041095,2]
[400629372,1767750663359,-755.8,0.00041095,2]
[400629373,1767750663368,-755.8,0.00041095,2]
[400629374,1767750663377,-755.8,0.00041095,2]
[400629375,1767750663386,-755.8,0.00041095,2]
[400629376,1767750663395,-755.8,0.00041095,2]
[400629377,1767750663405,-755.8,0.00041095,2]
[400629378,1767750663414,-755.8,0.00041095,2]
[400629379,1767750663423,-755.8,0.00041095,2]
[400629380,1767750663433,-755.8,0.00041095,2]
[400629381,1767750663442,-755.8,0.00041095,2]
[400629382,1767750663451,-755.8,0.00041095,2]
[400629383,1767750663459,-755.8,0.00041095,2]
[400629384,1767750663468,-755.8,0.00041095,2]
[400629385,1767750663477,-755.8,0.00041095,2]
[400629386,1767750663489,-755.8,0.00041095,2]
[400629387,1767750663497,-755.8,0.00041095,2]
[400629388,1767750663506,-755.8,0.00041095,2]
[400629389,1767750663515,-755.8,0.00041095,2]
[400629390,1767750663524,-755.8,0.00041095,2]
[400629391,1767750663534,-755.8,0.00041095,2]
[400629392,1767750663543,-755.8,0.00041095,2]
[400629393,1767750663552,-755.8,0.00041095,2]
[400629394,1767750663562,-755.8,0.00041095,2]
[400629395,1767750663570,-756.02329824,0.00041095,2]
[400629396,1767750663579,-500.0,0.00041095,15]
[400629397,1767750663589,-500.0,0.00041095,15]
[400629398,1767750663599,-500.0,0.00041095,15]
[400629399,1767750663608,-571.61823241,0.00041095,15]
[400629400,1767750663617,-500.0,0.00041095,15]
[400629401,1767750663625,-600.0,0.00041096,120]
[400629402,1767750663637,-150.0,0.00041096,10]
[400629403,1767750663646,-150.0,0.00041096,10]
[400629404,1767750663656,-769.21,0.00041096,120]
[400629405,1767750663665,-789.08,0.00041096,120]
[400629406,1767750663674,-1000.0,0.00041096,30]
[400629407,1767750663683,-1000.0,0.00041096,30]
[400629408,1767750663692,-1000.0,0.00041096,30]
[400629409,1767750663700,-1000.0,0.00041096,30]
[400629410,1767750663709,-1000.0,0.00041096,30]
[400629411,1767750663718,-1000.0,0.00041096,30]
[400629412,1767750663727,-1000.0,0.00041096,30]
[400629413,1767750663738,-1000.0,0.00041096,30]
[400629414,1767750663747,-1000.0,0.00041096,30]
[400629415,1767750663756,-1000.0,0.00041096,30]
[400629416,1767750663765,-1000.0,0.00041096,30]
[400629417,1767750663774,-1000.0,0.00041096,30]
[400629418,1767750663782,-1000.0,0.00041096,30]
[400629419,1767750663792,-1000.0,0.00041096,30]
[400629420,1767750663801,-1000.0,0.00041096,30]
[400629421,1767750663809,-1000.0,0.00041096,30]
[400629422,1767750663819,-1000.0,0.00041096,30]
[400629423,1767750663828,-1000.0,0.00041096,30]
[400629424,1767750663837,-1000.0,0.00041096,30]
[400629425,1767750663846,-1000.0,0.00041096,30]
[400629426,1767750663856,-1000.0,0.00041096,30]
[400629427,1767750663866,-1000.0,0.00041096,30]
[400629428,1767750663876,-1000.0,0.00041096,30]
[400629429,1767750663885,-1000.0,0.00041096,30]
[400629430,1767750663895,-1000.0,0.00041096,30]
[400629431,1767750663905,-1000.0,0.00041096,30]
[400629432,1767750663914,-1000.0,0.00041096,30]
[400629433,1767750663924,-1000.0,0.00041096,30]
[400629434,1767750663934,-1000.0,0.00041096,30]
[400629435,1767750663944,-1000.0,0.00041096,30]
[400629436,1767750663953,-1000.0,0.00041096,30]
[400629437,1767750663962,-1000.0,0.00041096,30]
[400629438,1767750663972,-1000.0,0.00041096,30]
[400629439,1767750663981,-1000.0,0.00041096,30]
[400629440,1767750663990,-1000.0,0.00041096,30]
[400629441,1767750663999,-1000.0,0.00041096,30]
[400629442,1767750664010,-1000.0,0.00041096,30]
[400629443,1767750664019,-1000.0,0.00041096,30]
[400629444,1767750664028,-1000.0,0.00041096,30]
[400629445,1767750664038,-1000.0,0.00041096,30]
[400629446,1767750664048,-1000.0,0.00041096,30]
[400629447,1767750664057,-1000.0,0.00041096,30]
[400629448,1767750664067,-1000.0,0.00041096,30]
[400629449,1767750664076,-1000.0,0.00041096,30]
[400629450,1767750664086,-1000.0,0.00041096,30]
[400629451,1767750664095,-1000.0,0.00041096,30]
[400629452,1767750664106,-1000.0,0.00041096,30]
[400629453,1767750664117,-1000.0,0.00041096,30]
[400629454,1767750664126,-1000.0,0.00041096,30]
[400629455,1767750664135,-1000.0,0.00041096,30]
[400629456,1767750664149,-1000.0,0.00041096,30]
[400629457,1767750664158,-1000.0,0.00041096,30]
[400629458,1767750664168,-1000.0,0.00041096,30]
[400629459,1767750664178,-1000.0,0.00041096,30]
[400629460,1767750664187,-1000.0,0.00041096,30]
[400629461,1767750664199,-1000.0,0.00041096,30]
[400629462,1767750664208,-1000.0,0.00041096,30]
[400629463,1767750664218,-1000.0,0.00041096,30]
[400629464,1767750664229,-1000.0,0.00041096,30]
[400629465,1767750664240,-1000.0,0.00041096,30]
[400629466,1767750664249,-1000.0,0.00041096,30]
[400629467,1767750664259,-1000.0,0.00041096,30]
[400629468,1767750664271,-1000.0,0.00041096,30]
[400629469,1767750664281,-1000.0,0.00041096,30]
[400629470,1767750664290,-1000.0,0.00041096,30]
[400629471,1767750664300,-1000.0,0.00041096,30]
[400629472,1767750664310,-1000.0,0.00041096,30]
[400629473,1767750664319,-1000.0,0.00041096,30]
[400629474,1767750664329,-1000.0,0.00041096,30]
[400629475,1767750664338,-1000.0,0.00041096,30]
[400629476,1767750664348,-1000.0,0.00041096,30]
[400629477,1767750664359,-1000.0,0.00041096,30]
[400629478,1767750664369,-1000.0,0.00041096,30]
[400629479,1767750664381,-1000.0,0.00041096,30]
[400629480,1767750664391,-1000.0,0.00041096,30]
[400629481,1767750664402,-1000.0,0.00041096,30]
[400629482,1767750664412,-1000.0,0.00041096,30]
[400629483,1767750664422,-1000.0,0.00041096,30]
[400629484,1767750664432,-2000.0,0.00041096,13]
[400629485,1767750664441,-2000.0,0.00041096,13]
[400629486,1767750664451,-2000.0,0.00041096,13]
[400629487,1767750664461,-2000.0,0.00041096,13]
[400629488,1767750664471,-2000.0,0.00041096,13]
[400629489,1767750664480,-2000.0,0.00041096,13]
[400629490,1767750664491,-2000.0,0.00041096,13]
[400629491,1767750664500,-2000.0,0.00041096,13]
[400629492,1767750664510,-2000.0,0.00041096,13]
[400629493,1767750664520,-2000.0,0.00041096,13]
[400629494,1767750664530,-2000.0,0.00041096,13]
[400629495,1767750664540,-175.0,0.00041096,13]
[400629496,1767750664549,-1000.0,0.00041096,30]
[400629497,1767750664559,-1000.0,0.00041096,30]
[400629498,1767750664568,-1000.0,0.00041096,30]
[400629499,1767750664577,-1000.0,0.00041096,30]
[400629500,1767750664586,-1000.0,0.00041096,30]
[400629501,1767750664596,-1000.0,0.00041096,30]
[400629502,1767750664605,-1000.0,0.00041096,30]
[400629503,1767750664614,-1000.0,0.00041096,30]
[400629504,1767750664624,-1000.0,0.00041096,30]
[400629505,1767750664634,-1000.0,0.00041096,30]
[400629506,1767750664643,-1000.0,0.00041096,30]
[400629507,1767750664653,-1000.0,0.00041096,30]
[400629508,1767750664662,-1000.0,0.00041096,30]
[400629509,1767750664671,-1000.0,0.00041096,30]
[400629510,1767750664681,-1000.0,0.00041096,30]
[400629511,1767750664691,-1000.0,0.00041096,30]
[400629512,1767750664701,-1000.0,0.00041096,30]
[400629513,1767750664711,-1000.0,0.00041096,30]
[400629514,1767750664721,-1000.0,0.00041096,30]
[400629515,1767750664730,-1000.0,0.00041096,30]
[400629516,1767750664741,-1000.0,0.00041096,30]
[400629517,1767750664751,-1000.0,0.00041096,30]
[400629518,1767750664760,-200.0,0.00041096,20]
[400629519,1767750664770,-766.0,0.00041096,78]
[400629520,1767750664780,-845.0,0.00041096,77]
[400629521,1767750664790,-986.0,0.00041096,108]
[400629522,1767750664799,-922.5,0.00041096,54]
[400629523,1767750664809,-2617.02889304,0.000411,120]
[400629524,1767750664820,-1025.55171231,0.000411,120]
[400629525,1767750664830,-1025.55171231,0.000411,120]
[400629526,1767750664839,-1025.55171231,0.000411,120]
[400629527,1767750664851,-1025.55171231,0.000411,120]
[400629528,1767750664860,-1025.55171231,0.000411,120]
[400629529,1767750664871,-1025.55171231,0.000411,120]